bitfinex-derivatives/quotes_ETHF0:USTF0_20241020
["timestamp","ask_amount","ask_price","bid_price","bid_amount"]
[1729440127986,0.76666,2704.4,2704.2,0.3948]
[1729440128284,0.3968,2704.4,2704.3,0.36986]
[1729440128787,0.76665,2704.4,2704.3,0.36986]
[1729440129283,3.2078,2704.5,2704.4,0.36985]
[1729440130084,3.2078,2705.3,2705.2,0.36974]
[1729440135084,0.4086,2705.6,2705.2,0.36974]
[1729440135286,0.4086,2705.6,2705.5,0.3697]
[1729440136680,3.2078,2705.8,2705.7,0.36967]
[1729440137079,0.7875,2706.0,2705.9,0.36964]
[1729440141290,1.15714,2706.0,2705.9,0.36964]
[1729440141797,0.7875,2706.0,2705.9,0.36964]
[1729440142394,3.2078,2706.2,2706.1,0.36962]
[1729440146892,3.2078,2706.5,2706.4,0.36958]
[1729440148790,0.7751,2706.8,2706.4,0.36958]
[1729440148997,0.7751,2706.8,2706.7,0.36953]
[1729440157297,0.3916,2706.8,2706.7,0.36953]
[1729440158306,0.3801,2707.2,2707.1,0.36948]
[1729440158513,0.7979,2707.2,2707.1,0.36948]
[1729440159694,1.183,2707.2,2707.1,0.36948]
[1729440161110,1.55247,2707.2,2707.1,0.36948]
[1729440161608,1.183,2707.2,2707.1,0.36948]
[1729440162111,1.183,2707.2,2706.0,0.822]
[1729440162112,4.8766,2707.2,2706.0,0.821]
[1729440162407,0.36949,2707.0,2706.8,0.36951]
[1729440162605,3.57731,2706.9,2706.8,0.36951]
[1729440163115,7.27171,2706.9,2706.8,0.36951]
[1729440163605,6.9022,2706.9,2706.2,0.92401]
[1729440163802,0.36953,2706.8,2706.6,0.36954]
[1729440163995,0.4054,2706.7,2706.6,0.36954]
[1729440164201,0.8142,2706.7,2706.6,0.36954]
[1729440166208,3.2078,2706.9,2706.8,0.36952]
[1729440166509,0.3907,2707.1,2706.4,3.6119]
[1729440166708,0.3907,2707.1,2707.0,0.36949]
[1729440168410,0.3908,2707.2,2707.1,0.36948]
[1729440170606,3.57722,2707.6,2707.5,0.36943]
[1729440170607,3.2078,2707.6,2707.5,0.36943]
[1729440170808,3.6139,2707.6,2707.5,0.36943]
[1729440171107,3.98331,2707.6,2707.0,0.7626]
[1729440171312,3.98331,2707.6,2707.5,0.36943]
[1729440172017,3.6139,2707.6,2707.0,0.3939]
[1729440172219,3.6139,2707.6,2706.9,0.92378]
[1729440172515,0.36944,2707.4,2707.3,0.36944]
[1729440173611,3.6139,2707.6,2706.9,0.92378]
[1729440173811,3.6139,2707.6,2707.5,0.36943]
[1729440174514,3.98331,2707.6,2707.5,0.36943]
[1729440174717,0.36943,2707.5,2707.4,0.36943]
[1729440174914,3.98333,2707.6,2707.1,0.36948]
[1729440175114,3.98333,2707.6,2707.4,0.36943]
[1729440175820,3.98333,2707.6,2707.5,0.36943]
[1729440176526,3.6139,2707.6,2707.0,0.92372]
[1729440176716,0.36943,2707.5,2707.4,0.36943]
[1729440177423,3.98332,2707.6,2707.5,0.36943]
[1729440179610,3.6139,2707.6,2707.5,0.36943]
[1729440179816,3.2078,2707.6,2707.5,4.06303]
[1729440180711,3.2078,2708.0,2707.7,0.92348]
[1729440180910,5.001,2708.5,2707.9,0.36937]
[1729440180911,3.2078,2708.3,2707.9,0.36937]
[1729440181111,3.2078,2708.3,2708.2,0.36933]
[1729440182123,3.2078,2708.3,2708.2,4.06213]
[1729440182518,2.28386406,2708.3,2708.2,4.06213]
[1729440182715,3.2078,2708.6,2708.5,0.36929]
[1729440184320,0.36925,2708.8,2708.2,3.2078]
[1729440184626,0.36925,2708.8,2708.6,0.36927]
[1729440185413,4.0313,2708.9,2708.2,3.2078]
[1729440185629,0.36926,2708.8,2708.6,0.36928]
[1729440186320,4.40054,2708.9,2708.7,0.36925]
[1729440187116,4.40054,2708.9,2708.3,1.6852]
[1729440187325,4.0313,2708.9,2708.8,0.36925]
[1729440187527,3.6101,2708.9,2708.8,0.36925]
[1729440188322,0.36926,2708.8,2708.6,0.36927]
[1729440188522,0.36926,2708.8,2708.7,0.36926]
[1729440188723,0.36926,2708.8,2708.6,0.36926]
[1729440189034,0.36926,2708.8,2708.0,0.36935]
[1729440189035,0.92313,2708.8,2708.0,0.36935]
[1729440189320,0.92313,2708.8,2707.7,0.82]
[1729440189321,3.2078,2708.6,2707.7,1.74348]
[1729440189529,3.2078,2708.6,2708.3,0.36932]
[1729440189530,0.36931,2708.4,2708.3,0.36932]
[1729440189919,0.36933,2708.3,2708.1,0.36933]
[1729440190119,0.4196,2708.3,2707.6,3.6011]
[1729440190318,0.36934,2708.1,2708.0,0.36935]
[1729440190510,0.36934,2708.1,2707.6,4.4211]
[1729440190511,0.36934,2708.1,2707.9,0.36936]
[1729440190715,0.4049,2708.2,2708.0,0.36935]
[1729440191223,0.77424,2708.2,2708.0,0.36935]
[1729440191427,0.4049,2708.2,2707.7,3.2078]
[1729440191622,0.4049,2708.2,2708.1,0.36934]
[1729440194122,0.4049,2708.2,2707.7,3.2078]
[1729440194325,0.3945,2708.1,2707.7,3.2078]
[1729440194635,0.36944,2707.5,2707.3,0.36945]
[1729440194823,0.3835,2707.4,2707.3,0.36945]
[1729440195525,0.3843,2707.7,2707.1,3.2078]
[1729440195730,1.1372,2707.7,2707.5,0.36941]
[1729440195920,0.7678,2707.7,2707.1,3.2078]
[1729440196128,0.3835,2707.7,2707.6,0.36941]
[1729440196931,3.2078,2707.8,2707.7,0.3694]
[1729440197432,0.3843,2708.0,2707.9,0.36937]
[1729440197734,0.75366,2708.0,2707.8,0.36937]
[1729440198130,0.75366,2708.0,2707.8,0.36938]
[1729440198334,0.3843,2708.0,2707.9,0.36937]
[1729440198635,3.2078,2708.2,2708.1,0.36934]
[1729440199132,3.2078,2708.2,2707.6,1.31794]
[1729440199325,3.57714,2708.2,2708.0,0.36935]
[1729440199532,0.4067,2708.1,2708.0,0.36935]
[1729440200234,0.4067,2708.1,2707.5,0.55183465]
[1729440200436,3.57718,2707.9,2707.7,0.36939]
[1729440200651,3.2078,2707.9,2707.7,0.36939]
[1729440200839,0.36938,2707.8,2707.7,0.36939]
[1729440201028,3.57718,2707.9,2707.4,3.6014]
[1729440201338,0.4072,2707.7,2707.6,0.36941]
[1729440201632,0.4072,2707.7,2707.1,0.3684]
[1729440201633,0.4072,2707.7,2707.1,3.5762]
[1729440201825,0.36943,2707.5,2707.3,0.36945]
[1729440202435,0.77612,2707.6,2707.4,0.36943]
[1729440202735,0.77612,2707.6,2707.1,3.2078]
[1729440202937,0.77612,2707.6,2707.4,0.36943]
[1729440203135,0.36943,2707.5,2707.4,0.36943]
[1729440203742,0.77612,2707.6,2707.4,0.36943]
[1729440204635,0.36943,2707.5,2707.3,0.36944]
[1729440205226,0.36943,2707.5,2707.4,0.36944]
[1729440205439,3.6145,2707.6,2706.9,0.95615123]
[1729440205737,3.6145,2707.6,2706.8,5.43223566]
[1729440205738,3.6145,2707.6,2707.0,0.36948]
[1729440205938,3.6145,2707.6,2706.8,3.9607]
[1729440206137,0.36945,2707.4,2707.2,0.36946]
[1729440206340,0.4132,2707.3,2707.2,0.36946]
[1729440206730,3.6145,2707.6,2706.8,4.88449]
[1729440206927,3.6145,2707.6,2706.8,4.91685123]
[1729440207140,3.6145,2707.6,2707.5,0.36943]
[1729440208336,0.4067,2707.6,2707.5,0.36943]
[1729440212549,0.4067,2707.6,2707.1,0.95615123]
[1729440212738,0.36943,2707.5,2707.4,0.36944]
[1729440212938,0.36943,2707.5,2707.0,1.87987123]
[1729440213139,0.36944,2707.4,2707.3,0.36944]
[1729440213846,0.36944,2707.4,2706.9,0.95615123]
[1729440214046,0.36944,2707.4,2707.2,0.36946]
[1729440214242,0.4059,2707.3,2707.2,0.36946]
[1729440216534,0.77536,2707.3,2706.9,0.95615123]
[1729440216740,0.4126,2707.2,2706.9,0.95615123]
[1729440216938,0.4126,2707.2,2707.1,0.36948]
[1729440218345,0.828,2707.2,2707.1,0.36948]
[1729440219651,3.57722,2707.6,2707.4,0.36943]
[1729440219948,0.8017,2707.5,2707.4,0.36943]
[1729440221150,4.4953,2707.5,2706.9,0.95615123]
[1729440221339,3.2078,2707.3,2706.5,4.16395123]
[1729440221639,0.36951,2706.9,2706.8,0.36952]
[1729440221842,0.3695,2707.0,2706.8,0.36952]
[1729440222146,3.6241,2706.9,2706.4,0.95615123]
[1729440222348,0.36955,2706.7,2706.2,4.16395123]
[1729440222537,0.3951,2706.6,2706.5,0.36956]
[1729440222744,0.3951,2706.6,2706.2,3.2078]
[1729440222745,0.8007,2706.6,2706.2,3.2078]
[1729440223046,0.8007,2706.6,2706.5,0.36956]
[1729440223647,0.8007,2706.6,2706.2,3.2078]
[1729440224045,0.8007,2706.6,2706.5,0.36956]
[1729440224648,0.8007,2706.6,2706.4,0.36957]
[1729440224649,1.17025,2706.6,2706.4,0.36957]
[1729440225050,4.0085,2706.6,2706.5,0.36956]
[1729440225347,4.0085,2706.6,2706.2,3.2078]
[1729440225348,4.37805,2706.6,2706.4,0.36957]
[1729440225551,4.0085,2706.6,2706.2,3.2078]
[1729440225746,4.37806,2706.6,2706.4,0.36957]
[1729440225948,4.37806,2706.6,2706.5,0.36956]
[1729440226143,0.36957,2706.5,2706.2,3.2078]
[1729440226344,0.3992,2706.4,2706.3,0.36959]
[1729440229749,4.0944,2706.4,2705.7,1.49042904]
[1729440229948,4.0944,2706.4,2706.1,0.36962]
[1729440229949,3.57739,2706.3,2706.1,0.36962]
[1729440230356,0.4092,2706.2,2706.1,0.36962]
[1729440231771,3.2078,2706.3,2706.2,0.3696]
[1729440233171,0.3992,2706.4,2706.0,0.3936]
[1729440233370,0.3992,2706.4,2706.2,0.36959]
[1729440233578,0.3811,2706.3,2706.2,0.36959]
[1729440235963,0.3992,2706.4,2705.8,3.2078]
[1729440236170,0.3696,2706.3,2706.1,0.36961]
[1729440236479,0.3992,2706.4,2705.8,3.2078]
[1729440236480,0.76878,2706.4,2705.8,3.2078]
[1729440236677,0.76878,2706.4,2706.1,0.3696]
[1729440237482,0.76878,2706.4,2705.5,5.03325]
[1729440237483,0.3696,2706.2,2705.5,8.24105]
[1729440237773,0.75242,2706.1,2705.9,0.36964]
[1729440238477,0.3828,2706.1,2705.5,4.13205]
[1729440238677,0.36963,2706.0,2705.8,0.36965]
[1729440238873,0.3875,2705.9,2705.8,0.36965]
[1729440239671,0.8046,2705.9,2705.8,0.36965]
[1729440240271,1.17425,2705.9,2705.7,0.36967]
[1729440240471,0.8046,2705.9,2705.4,0.3936]
[1729440240673,0.8046,2705.9,2705.8,0.36966]
[1729440240876,1.17425,2705.9,2705.7,0.36966]
[1729440241274,3.696,2705.8,2705.0,0.95615123]
[1729440241475,1.72874,2705.9,2704.9,9.21056449]
[1729440241476,3.2078,2705.7,2704.9,9.21056449]
[1729440241677,3.57747,2705.7,2704.9,5.10156449]
[1729440241878,3.57747,2705.7,2705.5,0.36969]
[1729440242067,3.2078,2705.7,2705.5,0.36969]
[1729440242378,3.2078,2705.7,2705.1,0.92439]
[1729440242379,3.2078,2705.7,2705.6,0.36968]
[1729440244380,3.2078,2705.8,2705.7,0.36966]
[1729440246181,0.3828,2706.1,2706.0,0.36963]
[1729440246182,3.2078,2706.1,2706.0,0.36963]
[1729440247280,3.2078,2706.1,2705.9,0.3685]
[1729440247281,3.6215,2706.4,2705.9,0.3685]
[1729440247473,0.4137,2706.4,2706.3,0.36959]
[1729440248371,0.3807,2706.7,2706.3,3.6952]
[1729440248571,0.3807,2706.7,2706.6,0.36955]
[1729440249378,3.2078,2706.8,2706.4,0.3841]
[1729440249573,3.2078,2706.8,2706.7,0.36953]
[1729440249981,3.2078,2706.8,2706.7,4.06393]
[1729440250178,0.3893,2707.0,2706.9,0.36951]
[1729440250584,0.3893,2707.0,2706.5,0.3685]
[1729440250784,0.3893,2707.0,2706.9,0.36951]
[1729440252378,0.3893,2707.0,2706.5,0.3685]
[1729440252885,0.3859,2707.1,2706.5,0.3685]
[1729440253080,3.2078,2707.2,2706.5,4.5002]
[1729440253282,3.2078,2707.2,2707.1,0.36948]
[1729440253583,4.37373,2707.5,2706.8,3.2078]
[1729440253790,4.37373,2707.5,2707.2,0.36946]
[1729440253985,0.36944,2707.4,2707.2,0.36946]
[1729440254185,0.36944,2707.4,2707.1,0.36947]
[1729440254586,4.0043,2707.5,2706.9,0.3935]
[1729440254886,0.36947,2707.2,2707.0,0.36948]
[1729440255185,0.36951,2706.9,2706.6,0.36954]
[1729440255390,0.8243,2706.8,2706.7,0.36953]
[1729440255984,0.8243,2706.8,2706.3,0.82]
[1729440256184,1.19383,2706.8,2706.5,0.36955]
[1729440256388,0.8243,2706.8,2706.2,0.3935]
[1729440256586,1.19383,2706.8,2706.5,0.36955]
[1729440257180,0.8243,2706.8,2706.2,0.3935]
[1729440257487,4.0321,2706.8,2706.0,3.2078]
[1729440257686,4.0321,2706.8,2705.9,1.36495123]
[1729440257687,0.36958,2706.4,2705.9,0.95615123]
[1729440257889,0.36958,2706.4,2705.8,1.34465123]
[1729440258191,0.36958,2706.4,2706.1,0.36961]
[1729440258499,0.36958,2706.4,2706.2,0.3696]
[1729440258688,0.36956,2706.5,2706.3,0.36959]
[1729440258895,0.36959,2706.3,2706.1,0.36962]
[1729440259090,3.2078,2706.5,2706.0,0.36962]
[1729440259288,3.2078,2706.5,2705.8,0.95615123]
[1729440259289,0.4213,2706.2,2706.1,0.36962]
[1729440260087,0.4213,2706.2,2706.0,0.36962]
[1729440260388,0.4213,2706.2,2706.1,0.36962]
[1729440261896,0.4213,2706.2,2705.8,0.95615123]
[1729440262288,3.2078,2705.9,2705.5,0.95615123]
[1729440262484,0.76056,2705.8,2705.5,0.36969]
[1729440262792,0.3909,2705.8,2705.2,0.95615123]
[1729440263195,0.3909,2705.8,2705.4,0.36971]
[1729440263196,0.36968,2705.7,2705.4,0.36971]
[1729440263396,0.4033,2705.6,2705.4,0.36971]
[1729440263892,0.4033,2705.6,2705.2,0.95615123]
[1729440264089,0.4033,2705.6,2705.5,0.3697]
[1729440266087,0.76056,2705.8,2705.7,0.36967]
[1729440266088,0.3909,2705.8,2705.7,0.36967]
[1729440266296,3.2078,2705.9,2705.8,0.36966]
[1729440266691,0.3812,2706.0,2705.6,0.95615123]
[1729440266897,0.3812,2706.0,2705.9,0.36964]
[1729440267590,0.4049,2706.2,2706.1,0.36962]
[1729440268586,0.3839,2706.4,2706.3,0.36959]
[1729440270993,0.4049,2706.6,2706.5,0.36956]
[1729440271394,0.4049,2706.6,2706.1,0.95615123]
[1729440271395,0.4049,2706.6,2706.4,0.36957]
[1729440271704,0.4049,2706.6,2706.5,0.36956]
[1729440280512,0.77445,2706.6,2706.5,0.36956]
[1729440280807,0.36958,2706.4,2706.3,0.36959]
[1729440280997,0.36958,2706.4,2705.8,2.39125361]
[1729440280998,0.36957,2706.5,2706.4,0.36957]
[1729440281309,0.77446,2706.6,2706.4,0.36957]
[1729440281706,0.4049,2706.6,2706.4,0.36957]
[1729440281912,0.36956,2706.5,2706.4,0.36957]
[1729440282906,3.57736,2706.5,2706.4,0.36958]
[1729440283700,3.57736,2706.5,2705.9,5.64185031]
[1729440283701,0.36958,2706.4,2706.3,0.36958]
[1729440283902,3.2078,2706.5,2706.3,0.36959]
[1729440284110,0.36958,2706.4,2706.3,0.36959]
[1729440284606,3.2078,2706.5,2705.8,0.95615123]
[1729440284802,0.3856,2706.3,2706.0,0.36962]
[1729440285007,0.36962,2706.1,2706.0,0.36962]
[1729440285197,0.36962,2706.1,2705.9,0.36963]
[1729440285400,0.7645,2706.0,2705.9,0.36963]
[1729440288900,1.13413,2706.0,2705.9,0.36963]
[1729440289110,0.7645,2706.0,2705.9,0.36963]
[1729440293208,1.13414,2706.0,2705.8,0.36965]
[1729440293608,0.7645,2706.0,2705.9,0.36964]
[1729440296013,0.3846,2706.0,2705.9,0.36964]
[1729440297413,3.5934,2706.3,2706.2,0.3696]
[1729440297611,3.6156,2706.3,2706.2,0.3696]
[1729440297817,0.4078,2706.3,2706.2,0.3696]
[1729440298115,0.3894,2706.7,2706.3,0.36959]
[1729440298308,0.395,2706.6,2706.5,0.36955]
[1729440303512,4.17441922,2706.8,2706.3,1.34655123]
[1729440303716,3.2078,2706.8,2706.7,0.36953]
[1729440304416,3.2078,2706.8,2706.5,0.95615123]
[1729440304614,3.57733,2706.8,2706.5,0.95615123]
[1729440304819,3.57733,2706.8,2706.6,1.07171983]
[1729440305011,0.3916,2706.7,2706.6,1.32570123]
[1729440305328,0.3916,2706.7,2706.6,1.44126901]
[1729440305617,0.36958,2706.4,2706.3,0.95615123]
[1729440305817,0.36958,2706.4,2706.2,0.3696]
[1729440305818,0.36959,2706.3,2706.2,0.95615123]
[1729440306016,0.3696,2706.2,2706.0,1.32577123]
[1729440306215,0.3918,2706.1,2706.0,1.32577123]
[1729440306416,0.3918,2706.1,2706.0,1.07174158]
[1729440306618,0.3918,2706.1,2706.0,0.11559035]
[1729440306818,0.3918,2706.1,2706.0,0.48522035]
[1729440307020,0.3918,2706.1,2706.0,1.44137158]
[1729440308022,0.3918,2706.1,2706.0,1.07174158]
[1729440308219,0.3918,2706.1,2705.9,0.95615123]
[1729440308426,0.36964,2705.9,2705.7,1.32581123]
[1729440308614,0.36964,2705.9,2705.6,1.43510238]
[1729440308615,0.96661922,2706.0,2705.6,0.95615123]
[1729440308823,0.77646,2705.8,2705.6,0.95615123]
[1729440309321,0.77646,2705.8,2705.6,1.32583123]
[1729440309925,0.4068,2705.8,2705.7,0.36967]
[1729440310428,0.77646,2705.8,2705.7,1.07175946]
[1729440310627,0.77646,2705.8,2705.6,1.32583123]
[1729440311322,0.36967,2705.7,2705.6,0.95615123]
[1729440311527,0.75437,2705.7,2705.6,1.07176082]
[1729440312327,0.75437,2705.7,2705.6,1.44144082]
[1729440312328,0.3847,2705.7,2705.6,1.44144082]
[1729440313022,0.75437,2705.7,2705.6,0.11560959]
[1729440313423,0.36968,2705.6,2705.5,0.95615123]
[1729440313630,0.36968,2705.6,2705.5,0.11561479]
[1729440313925,0.3697,2705.5,2705.4,0.95615123]
[1729440314113,0.7746,2705.5,2705.4,1.0717686]
[1729440314315,0.7746,2705.5,2705.4,0.11561737]
[1729440314519,0.7746,2705.5,2705.3,0.36972]
[1729440314821,0.7746,2705.5,2705.0,1.82850238]
[1729440314822,0.4049,2705.5,2705.1,0.95615123]
[1729440315026,0.4049,2705.5,2705.4,0.36971]
[1729440315323,0.4049,2705.5,2705.2,0.95615123]
[1729440315728,3.6127,2705.5,2705.4,0.36971]
[1729440316425,3.9824,2705.5,2705.3,0.36972]
[1729440316620,3.6127,2705.5,2705.1,0.95615123]
[1729440316824,3.6127,2705.5,2705.4,0.36971]
[1729440317131,3.6127,2705.5,2705.1,0.95615123]
[1729440317821,3.9824,2705.5,2705.3,0.36972]
[1729440318540,0.4145,2705.4,2705.3,0.36972]
[1729440321725,0.4145,2705.4,2705.0,1.34955123]
[1729440321927,0.4145,2705.4,2705.0,0.95615123]
[1729440322230,0.36975,2705.2,2705.0,0.36976]
[1729440322529,0.36975,2705.2,2704.8,1.43510238]
[1729440322530,0.78422,2705.4,2705.2,0.36973]
[1729440323525,0.4145,2705.4,2705.2,0.36973]
[1729440323736,0.4145,2705.4,2704.9,0.92446]
[1729440323921,0.4145,2705.4,2705.3,0.36973]
[1729440324422,0.4145,2705.4,2705.0,0.36976]
[1729440324423,0.36973,2705.3,2705.0,0.36976]
[1729440324629,3.57754,2705.2,2704.6,4.16395123]
[1729440324827,0.408,2705.1,2704.9,0.36977]
[1729440325227,0.4101,2705.0,2704.8,0.36979]
[1729440325424,0.4101,2705.0,2704.9,0.36978]
[1729440325629,0.36978,2704.9,2704.7,0.3698]
[1729440325827,0.77987,2705.0,2704.8,0.36979]
[1729440326333,0.77987,2705.0,2704.7,0.3698]
[1729440326732,0.77987,2705.0,2704.5,1.71845123]
[1729440326935,0.77987,2705.0,2704.8,0.36979]
[1729440327232,0.4101,2705.0,2704.5,1.71845123]
[1729440327430,0.77748,2704.9,2704.7,0.3698]
[1729440327632,0.4077,2704.9,2704.7,0.3698]
[1729440327830,0.4077,2704.9,2704.8,0.36979]
[1729440328030,0.4077,2704.9,2704.5,0.7623]
[1729440328227,0.4077,2704.9,2704.6,0.36982]
[1729440328228,0.3698,2704.8,2704.6,0.36982]
[1729440328931,0.3698,2704.8,2704.5,0.7623]
[1729440328932,0.36981,2704.7,2704.5,0.36982]
[1729440329435,0.3865,2704.6,2704.5,0.36982]
[1729440329934,0.3865,2704.6,2704.5,0.36983]
[1729440330635,0.3698,2704.8,2704.3,3.2078]
[1729440330636,0.3698,2704.8,2704.6,0.36981]
[1729440331037,3.6155,2704.9,2704.3,3.2078]
[1729440331229,0.36981,2704.7,2704.5,0.36982]
[1729440332135,0.36983,2704.6,2704.4,0.36984]
[1729440332732,0.3904,2704.5,2704.4,0.36984]
[1729440333129,0.76024,2704.5,2704.4,0.36985]
[1729440333329,0.76024,2704.5,2704.3,3.57765]
[1729440333934,0.79125,2704.4,2704.3,3.2078]
[1729440334134,0.4214,2704.4,2704.2,0.36987]
[1729440334334,0.4214,2704.4,2704.0,0.18279279]
[1729440334335,0.8227,2704.4,2704.0,0.18279279]
[1729440334639,1.19255,2704.4,2703.9,3.2078]
[1729440334837,1.19255,2704.4,2704.2,0.36987]
[1729440335032,0.8227,2704.4,2704.0,0.18245973]
[1729440335233,0.8227,2704.4,2704.3,0.36986]
[1729440335528,0.8227,2704.4,2703.9,3.2078]
[1729440335529,1.19255,2704.4,2703.9,3.2078]
[1729440335734,1.19255,2704.4,2704.2,0.36987]
[1729440336134,0.36987,2704.3,2704.1,0.36988]
[1729440336335,1.19255,2704.4,2704.2,0.36987]
[1729440336736,0.8227,2704.4,2703.9,3.38930392]
[1729440336937,0.8227,2704.4,2704.3,0.36986]
[1729440337139,0.8227,2704.4,2704.2,0.36987]
[1729440337140,1.19256,2704.4,2704.2,0.36987]
[1729440337944,0.36986,2704.3,2704.2,0.36987]
[1729440338137,0.36986,2704.3,2703.9,0.18150392]
[1729440338337,1.19256,2704.4,2704.2,0.36988]
[1729440339141,1.19256,2704.4,2704.2,0.36987]
[1729440339348,0.8227,2704.4,2704.2,0.36987]
[1729440339542,0.36986,2704.3,2704.1,0.36988]
[1729440339737,0.36988,2704.2,2704.0,0.36989]
[1729440339940,0.36988,2704.2,2703.7,0.8086]
[1729440340145,0.36988,2704.2,2704.1,0.36989]
[1729440340338,0.36988,2704.2,2704.0,0.3699]
[1729440340539,0.36988,2704.2,2703.7,0.8086]
[1729440340734,0.36988,2704.2,2704.1,0.36989]
[1729440340939,0.8227,2704.4,2703.1,4.16395123]
[1729440340940,3.2078,2704.3,2703.1,4.16395123]
[1729440341148,3.2078,2704.3,2703.4,0.4152]
[1729440341445,0.36991,2704.0,2703.8,0.36993]
[1729440341746,0.4104,2703.9,2703.8,0.36993]
[1729440342349,3.2078,2704.3,2703.4,0.4152]
[1729440342553,0.78028,2704.2,2704.0,0.3699]
[1729440343950,0.36991,2704.0,2703.8,0.36992]
[1729440344139,0.393,2703.9,2703.8,0.36992]
[1729440344638,0.36995,2703.7,2703.5,0.36997]
[1729440344950,0.393,2703.9,2703.5,0.36997]
[1729440344951,0.4142,2703.6,2703.5,0.36997]
[1729440345146,0.4142,2703.6,2703.2,0.8005]
[1729440345447,0.78416,2703.6,2703.4,0.36998]
[1729440345636,0.78416,2703.6,2703.2,0.8005]
[1729440345637,0.4142,2703.6,2703.5,0.36997]
[1729440345833,0.4142,2703.6,2703.2,0.8005]
[1729440346351,0.4142,2703.6,2703.3,0.37]
[1729440346542,0.4142,2703.6,2703.2,0.8005]
[1729440346753,0.4142,2703.6,2703.5,0.36997]
[1729440349149,0.78417,2703.6,2703.4,0.36998]
[1729440349539,0.78417,2703.6,2703.3,0.36999]
[1729440349540,0.36997,2703.5,2703.3,0.36999]
[1729440349742,0.4142,2703.6,2703.2,0.7714]
[1729440349743,0.36999,2703.4,2703.2,0.7714]
[1729440350545,0.4142,2703.6,2703.2,0.4014]
[1729440350845,0.36999,2703.4,2703.2,0.7714]
[1729440351445,0.36999,2703.4,2703.2,0.37]
[1729440352450,0.4142,2703.6,2703.0,0.3861]
[1729440352656,0.4142,2703.6,2703.5,0.36997]
[1729440352952,0.4142,2703.6,2703.0,0.3861]
[1729440353247,3.2078,2703.4,2703.0,0.3861]
[1729440353649,3.2078,2703.4,2703.1,0.37002]
[1729440353650,0.37,2703.3,2703.1,0.37002]
[1729440354461,3.2078,2703.4,2703.0,0.3861]
[1729440354845,0.37,2703.3,2703.1,0.37003]
[1729440355048,0.7888,2703.3,2703.1,0.37003]
[1729440355449,0.4188,2703.3,2702.8,3.5977]
[1729440355642,0.4188,2703.3,2703.2,0.37001]
[1729440355846,0.7888,2703.3,2703.1,0.37002]
[1729440356046,0.4188,2703.3,2703.2,0.37001]
[1729440356654,0.4188,2703.3,2702.8,3.5977]
[1729440357048,3.2078,2703.4,2702.8,3.5977]
[1729440357241,3.2078,2703.4,2703.3,0.37]
[1729440358955,3.2078,2703.4,2703.2,0.7905]
[1729440358956,0.4142,2703.6,2703.5,0.36997]
[1729440359855,0.4142,2703.6,2703.2,0.7905]
[1729440359856,3.2078,2703.9,2703.3,0.925]
[1729440360056,3.2078,2703.9,2703.8,0.36993]
[1729440360251,6.07105922,2705.0,2703.8,0.36993]
[1729440360252,3.5776,2704.8,2704.4,0.36985]
[1729440360451,3.5776,2704.8,2704.2,0.9247]
[1729440360452,3.2078,2704.8,2704.2,0.9247]
[1729440360847,3.2078,2704.8,2704.7,0.36981]
[1729440361048,0.4088,2704.9,2704.8,0.36979]
[1729440361651,0.4088,2704.9,2704.5,0.36983]
[1729440361849,0.421,2704.8,2704.5,0.36982]
[1729440362065,0.79079,2704.8,2704.5,0.36982]
[1729440362257,0.79079,2704.8,2704.6,0.36982]
[1729440362459,0.36981,2704.7,2704.5,0.36983]
[1729440362660,0.79081,2704.8,2704.5,0.36983]
[1729440362956,3.99861,2704.8,2704.6,0.36981]
[1729440363155,3.6288,2704.8,2704.7,0.36981]
[1729440363755,3.2078,2704.8,2704.7,0.36981]
[1729440364563,0.4169,2705.5,2704.7,0.36981]
[1729440364564,0.8082,2705.5,2704.7,6.9046]
[1729440364862,0.3913,2705.5,2705.4,0.36971]
[1729440365057,3.57746,2705.8,2705.0,0.9244]
[1729440365254,3.96876,2705.8,2705.5,0.36969]
[1729440365455,0.36969,2705.6,2705.4,0.36971]
[1729440365955,3.5991,2705.8,2704.8,2.29093808]
[1729440366159,0.36973,2705.3,2704.8,0.7724]
[1729440366356,0.3913,2705.2,2704.8,0.389]
[1729440366560,0.36976,2705.1,2704.9,0.36977]
[1729440366968,0.76104,2705.2,2704.9,0.36977]
[1729440368469,3.96884,2705.2,2704.9,0.36977]
[1729440370165,0.36977,2705.0,2704.8,0.75879]
[1729440370566,0.78436,2705.1,2704.9,0.36978]
[1729440371469,0.4146,2705.1,2704.9,0.36978]
[1729440371871,0.78435,2705.1,2704.9,0.36978]
[1729440372564,0.4146,2705.1,2704.5,0.3916]
[1729440372867,0.4146,2705.1,2705.0,0.36977]
[1729440374161,0.4146,2705.1,2704.5,0.3916]
[1729440374358,0.4146,2705.1,2705.0,0.36977]
[1729440375271,0.4146,2705.1,2704.9,0.36977]
[1729440375272,0.78435,2705.1,2704.9,0.36977]
[1729440377072,0.78435,2705.1,2705.0,0.36977]
[1729440377073,0.4146,2705.1,2705.0,0.36977]
[1729440377968,0.4146,2705.1,2704.6,0.18291757]
[1729440378371,0.4146,2705.1,2705.0,0.36977]
[1729440379670,3.96884,2705.2,2704.6,1.10744757]
[1729440379671,3.5991,2705.2,2705.1,0.36975]
[1729440380265,0.3913,2705.2,2705.1,0.36975]
[1729440380575,0.36971,2705.4,2705.3,0.36972]
[1729440380872,0.36973,2705.3,2705.2,0.36973]
[1729440381671,0.3873,2705.5,2704.9,0.8074]
[1729440381971,3.57751,2705.4,2705.3,0.36972]